Cogmind - Beta 14 @@@ ROGUE MODE // 2024.08.10 @ 19:16:47 Player: Sionnis Result: Destroyed by U5-O3O(R) with Subdweller Machine Gun Performance ------------- Evolutions (0) 0 Regions Visited (2) 400 Robots Destroyed (28) 140 Value Destroyed (606) 606 Prototype IDs (0) 0 Alien Tech Used (0) 0 Bonus (0) 0 TOTAL SCORE: 1146 Bonus ------- None Cogmind --------- Core Integrity 0/250 Matter 200/300 Energy 98/100 System Corruption 0% Temperature Cool (0) Movement Treading (240) Ox1 Location -10/Subcaves Parts ------- > --- POWER (1) -------- (None) > --- PROPULSION (2) --- Light Treads Light Treads > --- UTILITY (2) ------ High-capacity Storage Unit > --- WEAPON (2) ------- Autogun Autogun > --- INVENTORY (20) --- Light Nuclear Core Light Treads Light Treads Light Treads Light Treads Light Treads Compact Wheel Flight Unit Flight Unit Flight Unit Flight Unit Medium Storage Unit Subdweller Optics Sensor Array Signal Interpreter Transport Network Coupler ECM Suite Rocket Launcher Maul Peak State ------------ > --- POWER ------------ Ion Engine > --- PROPULSION ------- Light Treads Light Treads > --- UTILITY ---------- Improved Heat Sink Large Storage Unit > --- WEAPON ----------- Autogun Autogun > --- INVENTORY -------- Ion Engine Light Nuclear Core Light Treads Light Treads Compact Wheel Flight Unit Flight Unit Heat Sink Medium Storage Unit Transport Network Coupler Autogun Autogun Light Cannon Rocket Launcher Maul [Rating: 13] Favorites ----------- Power Ion Engine Engine Ion Engine Propulsion Light Treads Treads Light Treads Utility High-capacity Storage Unit Device Improved Heat Sink Storage High-capacity Storage Unit Protection Propulsion Shielding Weapon Autogun Energy Gun Medium Laser Ballistic Gun Autogun Impact Weapon Maul Build | -11 -10 -10 ------- Run | Yrd Mat Sub Slots Evolved . | . . . Power . | . . . Propulsion . | . . . Utility . | . . . Weapon . | . . . Parts Attached 26 | 6 16 4 Power 3 | 1 2 . Engine 3 | 1 2 . Core . | . . . Reactor . | . . . Propulsion 5 | 2 3 . Treads 5 | 2 3 . Leg . | . . . Wheel . | . . . Hover . | . . . Flight . | . . . Utility 9 | 1 8 . Device 3 | . 3 . Storage 4 | 1 3 . Processor . | . . . Hackware . | . . . Protection 2 | . 2 . Artifact . | . . . Weapon 9 | 2 3 4 Energy Gun 1 | 1 . . Energy Cannon . | . . . Ballistic Gun 7 | 1 3 3 Ballistic Cannon . | . . . Launcher . | . . . Special Weapon . | . . . Impact Weapon 1 | . . 1 Slashing Weapon . | . . . Piercing Weapon . | . . . Special Melee Weapon . | . . . Unidentified Prototypes . | . . . Parts Lost 5 | . 1 4 Power 1 | . . 1 Propulsion . | . . . Utility 2 | . 1 1 Weapon 2 | . . 2 Highest Loss Streak 3 | . 1 3 To Critical Strikes . | . . . Average Slot Usage (%) 96 | . 98 80 Engine 12 | . 14 3 Treads 28 | . 28 28 Device 6 | . 7 . Storage 14 | . 14 14 Protection 6 | . 5 6 Energy Gun 1 | . 1 . Ballistic Gun 26 | . 25 27 Peak Build Rating 13 | 6 13 11 Average Rating 10 | 4 10 9 On Entrance 5 | . 6 11 Naked Turns . | . . . Heaviest Build 52 | 13 52 52 Greatest Support 40 | 40 40 40 Greatest Overweight (x) 1 | . 1 1 Average Overweight (x) . | . . 1 Largest Inventory Capacity 20 | 8 20 20 Average Capacity 16 | 6 16 20 Most Carried 20 | 2 20 20 Average Carried 13 | 1 12 19 Final Capacity 20 | 8 20 20 Final Carried 20 | 2 20 19 Class Distribution -------------------- 100% | Mutant Dominant Class ---------------- Mutant | -10/Materials Mutant | -10/Subcaves Resources | -11 -10 -10 ----------- Run | Yrd Mat Sub Matter Collected 974 | 254 600 120 Remotely . | . . . Salvage Created 837 | . 717 120 Parts 66 | . 61 5 Haulers Intercepted 2 | . 2 . Recyclers Shooed 1 | . 1 . Parts Field Recycled . | . . . Retrieved Matter . | . . . Parts Self-Destructed 10 | . . 10 Prevented . | . . . Kills | -11 -10 -10 ------- Run | Yrd Mat Sub Combat Hostiles Destroyed 21 | . 18 3 Guns 21 | . 18 3 Classes Destroyed 6 | . 5 1 Worker 2 | . 2 . Hauler 2 | . 2 . Watcher 3 | . 3 . Swarmer 9 | . 9 . Grunt 9 | . 9 . Subdweller 3 | . . 3 Best Kill Streak 8 | . 8 2 Combat Bots Only 7 | . 7 2 Max Kills in Single Turn 1 | . 1 1 Gunslinging . | . . . Exploded . | . . . Melee . | . . . Uniques/NPCs Destroyed . | . . . Combat | -11 -10 -10 -------- Run | Yrd Mat Sub Hostile Shots Fired 151 | . 113 38 Missed 43 | . 37 6 Damage Taken 1497 | . 780 717 Core 265 | . 115 150 Absorbed by Shields . | . . . Redirected to Shielding 106 | . 68 38 Regen/Repaired (Parts) 74 | . 74 . Core Remaining (%) 100 | 100 . . Volleys Fired 100 | . 75 25 Largest 2 | . 2 2 Hottest 70 | . 70 46 Shots Fired 200 | . 150 50 Gun 200 | . 150 50 Cannon . | . . . Launcher . | . . . Special . | . . . Kinetic 177 | . 127 50 Thermal 23 | . 23 . Explosive . | . . . Electromagnetic . | . . . Robot Hit Streak 17 | . 9 17 Robot Miss Streak 12 | . 12 2 Penetration Max . | . . . Secondary Targets 3 | . 3 . Max Gunslinging Chain 1 | . 1 . Shots Hit Robots 130 | . 87 43 Core Hits 41 | . 34 7 Critical Kills . | . . . Critical Parts Destroyed . | . . . Critical Strikes 2 | . 2 . Burn 2 | . 2 . Melee Attacks 2 | . . 2 Impact 2 | . . 2 Slashing . | . . . Piercing . | . . . Sneak Attacks . | . . . Combat Hostiles . | . . . Follow-up Attacks . | . . . Damage Inflicted 1969 | . 1307 662 Guns 1969 | . 1307 662 Cannons . | . . . Explosions . | . . . Melee . | . . . Ramming . | . . . Kinetic 1772 | . 1110 662 Thermal 197 | . 197 . Explosive . | . . . Electromagnetic . | . . . Impact . | . . . Slashing . | . . . Piercing . | . . . Highest Corruption . | . . . Average Corruption . | . . . Corruption Purged . | . . . Corruption Blocked . | . . . Overload Shots . | . . . Overflow Damage . | . . . Projectiles . | . . . Explosions . | . . . Melee . | . . . Knockbacks . | . . . Impact . | . . . Kinetic . | . . . Secondary . | . . . Self-Inflicted Damage . | . . . Shots . | . . . Rammed . | . . . Targets Rammed . | . . . Kicked . | . . . Crushed . | . . . Highest Temperature 40 | . 40 . Average Temperature 11 | . 11 . Received Heat Transfer 426 | . 261 165 Siege Activations . | . . . Robots Corrupted . | . . . Combat Hostiles . | . . . Parts Fried . | . . . Impact Corruptions . | . . . Robots Melted . | . . . Combat Hostiles . | . . . Parts Melted 1 | . 1 . Heat Transferred 740 | . 740 . Parts Sabotaged . | . . . Parts Stolen . | . . . Parts Stripped . | . . . Power Chain Reactions . | . . . Alert | -11 -10 -10 ------- Run | Yrd Mat Sub Peak Influence 205 | . 205 . Initial . | . . . Average 86 | . 90 . Maximum Alert Level 1 | . 1 . Low Security (%) 96 | 100 96 . Level 1 3 | . 3 . Level 2 . | . . . Level 3 . | . . . Level 4 . | . . . Level 5 . | . . . High Security . | . . . Max Security . | . . . Squads Dispatched 3 | . 3 . Investigation 3 | . 3 . Extermination . | . . . Reinforcement . | . . . Assault . | . . . Garrison . | . . . Intercept . | . . . Searches Triggered . | . . . Construction Impeded . | . . . Haulers Reinforced . | . . . Active Scanning Responses . | . . . Cargo Convoy Interrupts . | . . . Stealth | -11 -10 -10 --------- Run | Yrd Mat Sub Distress Signals 2 | . 2 . Communications Jammed . | . . . Distress Signals . | . . . Times Spotted 32 | . 28 4 Peak Tracking Total 5 | . 5 2 Tactical Retreats 2 | . 2 . Traps | -11 -10 -10 ------- Run | Yrd Mat Sub Traps Triggered 3 | . 3 . Indirectly . | . . . Trap Hack Attempts . | . . . Triggered . | . . . Disarmed . | . . . Reprogrammed . | . . . Reused . | . . . Traps Extracted . | . . . Installed . | . . . Triggered . | . . . Machines | -11 -10 -10 ---------- Run | Yrd Mat Sub Machines Disabled 1 | . 1 . Max in Single Turn 1 | . 1 . Machines Repaired . | . . . Machines Dismantled . | . . . Machines Sabotaged . | . . . Overloaded Fab Kills . | . . . Hacking | -11 -10 -10 --------- Run | Yrd Mat Sub Machines Accessed 7 | . 7 . Terminals 6 | . 6 . Fabricators . | . . . Repair Stations 1 | . 1 . Recycling Units . | . . . Scanalyzers . | . . . Garrison Access . | . . . Total Hacks 19 | . 19 . Successful 12 | . 12 . Failed 7 | . 7 . Catastrophic . | . . . Database Lockouts . | . . . Manual 17 | . 17 . Terminals 17 | . 17 . Fabricators . | . . . Repair Stations 2 | . 2 . Recycling Units . | . . . Scanalyzers . | . . . Garrison Access . | . . . Terminal Hacks 2 | . 2 . Robot Analysis 2 | . 2 . Fabricator Hacks . | . . . Repair Station Hacks 2 | . 2 . Scan Component 1 | . 1 . Repair 1 | . 1 . Recycling Unit Hacks . | . . . Scanalyzer . | . . . Garrison Access Hacks . | . . . Unauthorized Hacks 8 | . 8 . Terminals 8 | . 8 . Botnet 2 | . 2 . Operators 1 | . 1 . Skim 5 | . 5 . Fabricators . | . . . Repair Stations . | . . . Recycling Units . | . . . Scanalyzers . | . . . Garrison Access . | . . . Data Cores Recovered . | . . . Used . | . . . Hacking Detections 7 | . 7 . Full Trace Events . | . . . Feedback Events . | . . . Feedback Blocked . | . . . Robot Schematics Acquired . | . . . Robots Built . | . . . Authchips . | . . . Time . | . . . Total Robot Build Rating . | . . . Part Schematics Acquired . | . . . Parts Built . | . . . Authchips . | . . . Time . | . . . Total Part Build Rating . | . . . Parts Repaired 1 | . 1 . Time 32 | . 32 . Parts Recycled . | . . . Recycled Matter . | . . . Retrieved Matter . | . . . Retrieved Components . | . . . Parts Scanalyzed . | . . . Part Schematics Acquired . | . . . Parts Damaged . | . . . Bothacking | -11 -10 -10 ------------ Run | Yrd Mat Sub Used RIF Installer . | . . . Robots Hacked . | . . . Non-combat . | . . . Combat . | . . . Robot Hacks Applied . | . . . Relay Couplers Released . | . . . Fabnet Peak Effective % . | . . . Robots Rewired . | . . . Allies Hacked . | . . . Hacks Repelled . | . . . Allies | -11 -10 -10 -------- Run | Yrd Mat Sub Total Allies . | . . . Largest Group . | . . . Highest-Rated Group . | . . . Highest-Rated Ally . | . . . Total Orders . | . . . Ally Attacks . | . . . Total Damage . | . . . Kills . | . . . Allies Corrupted . | . . . Allies Melted . | . . . Intel | -11 -10 -10 ------- Run | Yrd Mat Sub Robot Analysis Total 2 | . 2 . Derelict Logs Recovered . | . . . Drone Launches . | . . . Drone Recoveries . | . . . Exploration | -11 -10 -10 ------------- Run | Yrd Mat Sub Turns Passed 1971 | 81 1673 217 Spaces Moved 785 | 57 688 40 Core 18 | 18 . . Treads 767 | 39 688 40 Legs . | . . . Wheels . | . . . Hover . | . . . Flight . | . . . Fastest Speed 50 | 50 160 240 Average Speed 195 | 125 198 240 Slowest Speed 240 | 160 240 240 Overloaded Moves . | . . . Propulsion Burnouts . | . . . Robots Hopped . | . . . Cave-ins Triggered . | . . . Exploration Rate (%) 34 | 4 93 5 Regions Visited 2 Branch Regions 1 Pre-discovered Areas 1 | . 1 . Known Exits Taken 1 | . 1 . Unknown Exits Taken 1 | 1 . . Scrap Searched . | . . . Spaces Dug 1 | . . 1 Terrain Destroyed 1 | . . 1 Melee 1 | . . 1 Projectile . | . . . AOE . | . . . Terrain Rammed . | . . . Walls Destroyed . | . . . Machines Disabled . | . . . Actions | -11 -10 -10 --------- Run | Yrd Mat Sub Total 1063 | 64 881 118 Wait 106 | . 60 46 Move 783 | 56 687 40 Hop . | . . . Pick Up 28 | 2 25 1 Fast Attach 12 | 6 6 . Attach 2 | . . 2 Detach . | . . . Swap 12 | . 10 2 Drop 18 | . 18 . Fire 100 | . 75 25 Melee 2 | . . 2 Ram . | . . . Kick . | . . . Crush . | . . . Escape Stasis . | . . . Rewire . | . . . Trap . | . . . Miscellaneous . | . . . Route ------- -11/Scrapyard -10/Materials (discovered 6 exits: [*Mat x3] / [*Min x2] / *Sub) -10/Subcaves (discovered 3 exits: Mat x2 / Rec) History --------- Turn | Location | Event 5 | -11/Scrapyard | Discovered new exit (range 12) 82 | -11/Scrapyard | Entered Materials 318 | -10/Materials | Build established: Mutant 345 | -10/Materials | Discovered new exit (range 16) 624 | -10/Materials | Discovered new exit (range 16) 723 | -10/Materials | Destroyed 7 combat bots 904 | -10/Materials | Repaired Autogun 1040 | -10/Materials | Discovered new exit (range 7) 1216 | -10/Materials | Discovered new exit (range 16) 1423 | -10/Materials | Learned location of 2 exits from Mines 1467 | -10/Materials | Loaded intel: 8 terminal locations 1480 | -10/Materials | Discovered new exit (range 15) 1527 | -10/Materials | Learned 2 Storage zone layouts 1542 | -10/Materials | Learned Storage emergency access door positions 1643 | -10/Materials | Identified exit to Subcaves 1643 | -10/Materials | Learned location of 2 exits from Materials 1755 | -10/Materials | Entered Subcaves 1756 | -10/Subcaves | Identified exit to Materials 1756 | -10/Subcaves | Identified exit to Recycling 1800 | -10/Subcaves | Core integrity fell below 50% 1823 | -10/Subcaves | Core integrity fell below 20% 1855 | -10/Subcaves | Lost 3 parts (1p2w) 1972 | -10/Subcaves | Destroyed by U5-O3O(R) with Subdweller Machine Gun Last Messages --------------- Loading 1 Recycling entrance... Ion Engine destroyed. YT-PJF(R) destroyed. Autogun destroyed. ES-47C(R) affixes Scrap Shield Fragment to Scrap Shield. Autogun destroyed. Subatomizers dissect the Sub. Optics. ES-47C(R) destroyed. Acquired 53 matter. Acquired Sub. Optics. Subatomizers dissect the Sub. Optics. VG-9OY(R) affixes Scrap Shield Fragment to Scrap Shield. Propulsion Shielding destroyed. VG-9OY(R) destroyed. Subatomizers dissect the Sub. Optics. Acquired 34 matter. Acquired 33 matter. Subatomizers dissect the Sub. Optics. Map ----- +----------------------------------------------------+ | ?????????????????????????????????????????????????? | | ?????????????????????????????????????????????????? | | ???????# "?"????????????????????????????????????? | | ?????## " ??????????????????????????????????? | | ??? ????????????????????????????????? | | ?? ???????????????????????????????? | | ?? ???????????????????????????????? | | ??? ????????????????????????????????? | | ??? #????????????????????????????????? | | ??? #????????????????????????????????? | | ???? ?????????????????????????????????? | | ????? ??????????????????????????????????? | | ??????# ######??????????????????????????????? | | ??????# #? #??????????????????????????????? | | ???#### #?# ##?????????????????????????????? | | ??## ## ### #?????????????????????????????? | | ### # && ## ##????????????????????????????? | | & & ### ###??????????????????????????? | | ! ## ## ##?????????????????????????? | | "" ## ###???????????????????????? | | " "### ### ##??????????????????????? | | " ##"##?###?### #??????????????????????? | | #####????????# ##?????????????????????? | | ????????????# ####R ##????????????????????? | | #????????????# #??## ##???????????????????? | | #????????????# #???##@ #"#???????????????????? | | #????????????# ????######???????????????????? | | ????????????# ????????????????????????????? | | #????????????## ####???????????????????????????? | | ??????????????####??????????????????????????????? | | ????????????????????????????????????????????????? | | ?????????????????????????????????????????????????? | | ?????????????????????????????????????????????????? | | ?????????????????????????????????????????????????? | | ?????????????????????????????????????????????????? | | ?????????????????????????????????????????????????? | | ?????????????????????????????????????????????????? | | ????????????????????????????????????????????>????? | | ?????????????????????????????????????????????????? | | ?????????????????????????????????????????????????? | | ?????????????????????????????????????????????????? | | ?????????????????????????????????????????????????? | | ?????????????????????????????????????????????????? | | ?????????????????????????????????????????????????? | | ?????????????????????????????????????????????????? | | ?????????????????????????????????????????????????? | | ?????????????????????????????????????????????????? | | ?????????????????????????????????????????????????? | | ?????????????????????????????????????????????????? | | ?????????????????????????????????????????????????? | +----------------------------------------------------+ Best States ------------- Heat Dissipation 39 Energy Generation 10 Energy Capacity 250 Matter Stores 300 Matter Capacity 300 Sight Range 16 Terrain Scan Density 10 Propulsion Shielding 33 Evasion (%) 50 Recoil Reduction 2 Item Schematics ----------------- None Robot Schematics ------------------ None Fabricated ------------ Nothing Alien Tech Used ----------------- None Achievements -------------- None Challenges ------------ None Game ------ Seed ScrapPersonalLoader Manual? 0 Play Time 00:11:05 Cumulative 556.2 hours Start 2024.08.10 @ 19:07:06 End 2024.08.10 @ 19:16:47 Sessions 1 Manual Loads 0 Difficulty Rogue Special Mode None Game No. 312 Rogue 312 Adventurer 0 Explorer 0 Win Type - Total 36 Types 22/2/4/3/1/1/1/1/1 Lore% 95 Gallery% 97 Achievement% 98 Wizard Run 0 Options --------- Layout 1 ASCII 0 Keyboard 0 Movement Numpad Keybinds 0 Fullscreen 1 Font 24/Smallcaps Map View 50x35 Zoom Use 0% Tactical HUD 1 Map Filters NONE Filters NONE Steam 1 RUN: a05a34b7-07d6-4beb-9a97-b78513bf3cdc